Cogmind - Beta 15 @@@ ROGUE MODE // 2025.05.24 @ 16:54:55 Player: Minty Result: Destroyed by G-34 Mercenary with Small Laser Performance ------------- Evolutions (1) 500 Regions Visited (2) 400 Robots Destroyed (17) 85 Value Destroyed (345) 345 Prototype IDs (1) 20 Alien Tech Used (0) 0 Bonus (0) 0 TOTAL SCORE: 1350 Bonus ------- None Cogmind --------- Core Integrity 0/400 Matter 253/300 Energy 95/100 System Corruption 0% Temperature Cool (6) Movement Core (150) Ox2 Location -9/Materials Parts ------- > --- POWER (1) -------- (None) > --- PROPULSION (2) --- (None) > --- UTILITY (4) ------ Small Storage Unit Visual Processing Unit Hacking Suite > --- WEAPON (2) ------- Mini Grenade Launcher Heavy Hammer > --- INVENTORY (8) ---- Ion Engine Ion Engine Faulty Heavy Ion Engine Compact Wheel Heat Sink Improved Assault Rifle Heavy Hammer Heavy Hammer Peak State ------------ > --- POWER ------------ Ion Engine > --- PROPULSION ------- Light Treads Light Treads > --- UTILITY ---------- Small Storage Unit Visual Processing Unit Hacking Suite > --- WEAPON ----------- Improved Assault Rifle Heavy Hammer > --- INVENTORY -------- Ion Engine Ion Engine Compact Wheel Heat Sink Mini Grenade Launcher Heavy Hammer Heavy Hammer Heavy Hammer [Rating: 15] Favorites ----------- Power Ion Engine Engine Ion Engine Propulsion Aluminum Leg Treads Light Treads Leg Aluminum Leg Wheel Compact Wheel Utility Small Storage Unit Storage Small Storage Unit Processor Visual Processing Unit Hackware Hacking Suite Weapon Heavy Hammer Energy Gun EM Pulse Gun Ballistic Gun Improved Assault Rifle Launcher Mini Grenade Launcher Impact Weapon Heavy Hammer Build | -11 -10 -9 ------- Run | Yrd Mat Mat Slots Evolved 2 | . . 2 Power . | . . . Propulsion . | . . . Utility 2 | . . 2 Weapon . | . . . Parts Attached 13 | . 6 7 Power 1 | . 1 . Engine 1 | . 1 . Core . | . . . Reactor . | . . . Propulsion 4 | . 2 2 Treads 2 | . 2 . Leg . | . . . Wheel 2 | . . 2 Hover . | . . . Flight . | . . . Utility 2 | . 1 1 Device . | . . . Storage . | . . . Processor 1 | . 1 . Hackware 1 | . . 1 Protection . | . . . Artifact . | . . . Weapon 6 | . 2 4 Energy Gun 1 | . . 1 Energy Cannon . | . . . Ballistic Gun 1 | . . 1 Ballistic Cannon . | . . . Launcher 1 | . . 1 Special Weapon . | . . . Impact Weapon 3 | . 2 1 Slashing Weapon . | . . . Piercing Weapon . | . . . Special Melee Weapon . | . . . Unidentified Prototypes 1 | . . 1 Parts Lost 4 | . . 4 Power 1 | . . 1 Propulsion 2 | . . 2 Utility . | . . . Weapon 1 | . . 1 Highest Loss Streak 4 | . . 4 To Critical Strikes . | . . . Average Backups 7 | 6 7 7 Power 1 | 1 1 2 Propulsion 2 | 4 3 1 Utility 1 | . 1 1 Weapon 1 | 1 . 3 Tool/Special . | . . . Unused Backups 5 | . 2 3 Power 3 | . 2 1 Propulsion . | . . . Utility 1 | . . 1 Weapon 1 | . . 1 Tool/Special . | . . . Average Slot Usage (%) 82 | . 86 75 Engine 12 | . 14 9 Treads 9 | . 3 18 Leg 14 | . 24 . Storage 12 | . 14 11 Processor 5 | . 1 11 Hackware 1 | . . 4 Energy Gun 16 | . 25 1 Impact Weapon 9 | . 2 19 Peak Build Rating 15 | 6 11 15 Average Rating 8 | 6 7 11 On Entrance 7 | 6 6 11 Naked Turns . | . . . Heaviest Build 16 | 12 16 16 Greatest Support 40 | 20 40 40 Greatest Overweight (x) . | . . . Average Overweight (x) . | . . . Largest Inventory Capacity 8 | 8 8 8 Average Capacity 8 | 8 8 8 Most Carried 8 | 6 8 8 Average Carried 7 | 6 7 7 Final Capacity 8 | 8 8 8 Final Carried 8 | 6 8 8 Class Distribution -------------------- 100% | Mutant Dominant Class ---------------- Mutant | -10/Materials Mutant | -9/Materials Resources | -11 -10 -9 ----------- Run | Yrd Mat Mat Matter Collected 313 | 200 10 103 Remotely . | . . . Salvage Created 447 | . 175 272 Parts 33 | . 17 16 Haulers Intercepted 1 | . . 1 Recyclers Shooed . | . . . Parts Field Recycled . | . . . Retrieved Matter . | . . . Parts Self-Destructed . | . . . Prevented . | . . . Kills | -11 -10 -9 ------- Run | Yrd Mat Mat Combat Hostiles Destroyed 11 | . 4 7 Melee 2 | . . 2 Guns 4 | . 4 . AOE 3 | . . 3 Classes Destroyed 7 | . 4 3 Builder 1 | . . 1 Hauler 1 | . . 1 Recycler 2 | . 1 1 Operator 2 | . 1 1 Swarmer 6 | . 3 3 Grunt 4 | . 1 3 Sentry 1 | . . 1 Best Kill Streak 3 | . 3 3 Combat Bots Only 3 | . 3 3 Max Kills in Single Turn 3 | . 1 3 Gunslinging . | . . . Exploded 2 | . . 2 Melee 1 | . . 1 Uniques/NPCs Destroyed . | . . . Combat | -11 -10 -9 -------- Run | Yrd Mat Mat Hostile Shots Fired 139 | . 18 121 Missed 32 | . 3 29 Hits 107 | . 15 92 Projectile 107 | . 15 92 Damage Taken 1197 | . 139 1058 Core 436 | . 32 404 Absorbed by Shields . | . . . Core Remaining (%) 93 | 100 87 . Volleys Fired 20 | . 15 5 Largest 2 | . 2 1 Hottest 90 | . 90 40 Shots Fired 34 | . 29 5 Gun 32 | . 29 3 Cannon . | . . . Launcher 2 | . . 2 Special . | . . . Kinetic . | . . . Thermal 14 | . 14 . Explosive 2 | . . 2 Electromagnetic 18 | . 15 3 Robot Hit Streak 5 | . 5 1 Robot Miss Streak 6 | . 3 6 Penetration Max . | . . . Secondary Targets 1 | . 1 . Max Gunslinging Chain 1 | . 1 . Shots Hit Robots 24 | . 14 10 Core Hits 16 | . 7 9 Critical Kills . | . . . Critical Parts Destroyed 1 | . . 1 Critical Strikes 2 | . 1 1 Burn 1 | . 1 . Smash 1 | . . 1 Melee Attacks 15 | . . 15 Impact 15 | . . 15 Slashing . | . . . Piercing . | . . . Sneak Attacks 2 | . . 2 Combat Hostiles . | . . . Follow-up Attacks . | . . . Damage Inflicted 1302 | . 218 1084 Guns 230 | . 218 12 Cannons . | . . . Explosions 653 | . . 653 Melee 419 | . . 419 Ramming . | . . . Kinetic . | . . . Thermal 356 | . 117 239 Explosive 414 | . . 414 Electromagnetic 113 | . 101 12 Impact 419 | . . 419 Slashing . | . . . Piercing . | . . . Highest Corruption . | . . . Average Corruption . | . . . Corruption Purged . | . . . Corruption Blocked . | . . . Overload Shots . | . . . Overflow Damage 200 | . . 200 Projectiles . | . . . Explosions 101 | . . 101 Melee 99 | . . 99 Knockbacks 3 | . . 3 Impact 3 | . . 3 Kinetic . | . . . Secondary . | . . . Self-Inflicted Damage 110 | . . 110 Shots 2 | . . 2 Rammed . | . . . Targets Rammed . | . . . Kicked . | . . . Crushed . | . . . Highest Temperature 180 | . 180 21 Average Temperature 70 | . 71 19 Received Heat Transfer 339 | . 30 309 Siege Activations . | . . . Martial Activations . | . . . Shielding Activations . | . . . Robots Disrupted . | . . . Combat Hostiles . | . . . Robots Corrupted 3 | . . 3 Combat Hostiles 2 | . . 2 Parts Fried 1 | . . 1 Impact Corruptions 6 | . . 6 Robots Melted . | . . . Combat Hostiles . | . . . Parts Melted 1 | . 1 . Heat Transferred 557 | . 407 150 Parts Sabotaged . | . . . Parts Stolen . | . . . Parts Stripped . | . . . Power Chain Reactions 1 | . . 1 Alert | -11 -10 -9 ------- Run | Yrd Mat Mat Maximum Alert Level . | . . . Low Security (%) 100 | 100 100 100 Level 1 . | . . . Level 2 . | . . . Level 3 . | . . . Level 4 . | . . . Level 5 . | . . . High Security . | . . . Max Security . | . . . Peak Influence 127 | . 106 127 Initial . | . . . Average 37 | . 42 29 Influence Increases 383 | . 136 247 Destroy 0b10 Robot/C 220 | . 80 140 Destroy 0b10 Robot/NC 30 | . 10 20 Destroy Leader 42 | . 10 32 Successful Hack 6 | . 6 . Disable Machine 60 | . 30 30 Destroy Structure 25 | . . 25 Influence Decreases 256 | . 136 120 Time Decay 216 | . 136 80 Lost Part 40 | . . 40 Squads Dispatched 2 | . . 2 Investigation . | . . . Extermination . | . . . Reinforcement 2 | . . 2 Assault . | . . . Garrison . | . . . Intercept . | . . . Searches Triggered . | . . . Construction Impeded . | . . . Haulers Reinforced . | . . . Active Scanning Responses . | . . . Cargo Convoy Interrupts . | . . . Stealth | -11 -10 -9 --------- Run | Yrd Mat Mat Distress Signals . | . . . Communications Jammed . | . . . Distress Signals . | . . . Times Spotted 21 | . 7 14 Peak Tracking Total 7 | . 3 7 Tactical Retreats . | . . . Traps | -11 -10 -9 ------- Run | Yrd Mat Mat Traps Triggered . | . . . Indirectly . | . . . Trap Hack Attempts . | . . . Triggered . | . . . Disarmed . | . . . Reprogrammed 4 | . 4 . Reused . | . . . Traps Extracted . | . . . Installed . | . . . Triggered . | . . . Machines | -11 -10 -9 ---------- Run | Yrd Mat Mat Machines Disabled 4 | . 2 2 Max in Single Turn 2 | . 1 2 Machines Repaired . | . . . Machines Dismantled . | . . . Machines Sabotaged . | . . . Overloaded Fab Kills . | . . . Hacking | -11 -10 -9 --------- Run | Yrd Mat Mat Machines Accessed 4 | . 4 . Terminals 3 | . 3 . Fabricators . | . . . Repair Stations . | . . . Recycling Units 1 | . 1 . Scanalyzers . | . . . Garrison Access . | . . . Total Hacks 9 | . 9 . Successful 4 | . 4 . Failed 5 | . 5 . Catastrophic 2 | . 2 . Database Lockouts . | . . . Manual 4 | . 4 . Terminals 7 | . 7 . Fabricators . | . . . Repair Stations . | . . . Recycling Units 2 | . 2 . Scanalyzers . | . . . Garrison Access . | . . . Terminal Hacks 2 | . 2 . Robot Analysis 1 | . 1 . Reprogram Traps 1 | . 1 . Fabricator Hacks . | . . . Repair Station Hacks . | . . . Recycling Unit Hacks 2 | . 2 . Report Inventory 1 | . 1 . Retrieve Components 1 | . 1 . Scanalyzer . | . . . Garrison Access Hacks . | . . . Unauthorized Hacks . | . . . Terminals . | . . . Fabricators . | . . . Repair Stations . | . . . Recycling Units . | . . . Scanalyzers . | . . . Garrison Access . | . . . Data Cores Recovered 1 | . 1 . Used 1 | . 1 . Hacking Detections 3 | . 3 . Full Trace Events . | . . . Feedback Events . | . . . Feedback Blocked . | . . . Robot Schematics Acquired . | . . . Robots Built . | . . . Authchips . | . . . Time . | . . . Total Robot Build Rating . | . . . Part Schematics Acquired . | . . . Parts Built . | . . . Authchips . | . . . Time . | . . . Total Part Build Rating . | . . . Parts Repaired . | . . . Time . | . . . Parts Recycled . | . . . Recycled Matter . | . . . Retrieved Matter . | . . . Retrieved Components 4 | . 4 . Parts Scanalyzed . | . . . Part Schematics Acquired . | . . . Parts Damaged . | . . . Bothacking | -11 -10 -9 ------------ Run | Yrd Mat Mat Used RIF Installer . | . . . Robots Hacked . | . . . Non-combat . | . . . Combat . | . . . Robot Hacks Applied . | . . . Relay Couplers Released . | . . . Fabnet Peak Effective % . | . . . Robots Rewired . | . . . Allies Hacked . | . . . Hacks Repelled . | . . . Allies | -11 -10 -9 -------- Run | Yrd Mat Mat Total Allies . | . . . Largest Group . | . . . Highest-Rated Group . | . . . Highest-Rated Ally . | . . . Total Orders . | . . . Ally Attacks . | . . . Total Damage . | . . . Kills . | . . . Allies Corrupted . | . . . Allies Melted . | . . . Intel | -11 -10 -9 ------- Run | Yrd Mat Mat Active Infowar (turns) 256 | . 41 215 Optics 256 | . 41 215 Robot Analysis Total 1 | . 1 . Derelict Logs Recovered . | . . . Drone Launches . | . . . Drone Recoveries . | . . . Exploration | -11 -10 -9 ------------- Run | Yrd Mat Mat Turns Passed 581 | 2 364 215 Spaces Moved 340 | 2 246 92 Core . | . . . Treads 117 | . 27 90 Legs 221 | 2 219 . Wheels 2 | . . 2 Hover . | . . . Flight . | . . . Fastest Speed 100 | 120 120 100 Average Speed 133 | 120 124 158 Slowest Speed 160 | 120 160 160 Overloaded Moves . | . . . Propulsion Burnouts . | . . . Robots Hopped . | . . . Potential Cave-ins . | . . . Cave-ins Triggered . | . . . Exploration Rate (%) 20 | 2 44 16 Regions Visited 2 Branch Regions . Pre-discovered Areas . | . . . Known Exits Taken . | . . . Unknown Exits Taken 2 | 1 1 . Scrap Searched . | . . . Spaces Dug . | . . . Terrain Destroyed 34 | . . 34 Melee . | . . . Projectile . | . . . AOE 34 | . . 34 Terrain Rammed . | . . . Walls Destroyed . | . . . Machines Disabled . | . . . Actions | -11 -10 -9 --------- Run | Yrd Mat Mat Total 407 | 1 275 131 Wait . | . . . Move 338 | 1 245 92 Hop . | . . . Pick Up 10 | . 5 5 Fast Attach 3 | . 1 2 Attach 6 | . 2 4 Detach . | . . . Swap 7 | . 3 4 Drop 9 | . 4 5 Fire 20 | . 15 5 Melee 14 | . . 14 Ram . | . . . Kick . | . . . Crush . | . . . Escape Stasis . | . . . Rewire . | . . . Trap . | . . . Miscellaneous . | . . . Route ------- -11/Scrapyard -10/Materials -9/Materials (discovered 1 exit: [*Min]) History --------- Turn | Location | Event 1 | -11/Scrapyard | Discovered new exit (range 1) 3 | -11/Scrapyard | Entered Materials 268 | -10/Materials | Discovered new exit (range 11) 353 | -10/Materials | Build established: Mutant 367 | -10/Materials | Entered another Materials area 367 | -9/Materials | Evolved 2 slots: Utility x2 367 | -9/Materials | Discovered new exit (range 8) 566 | -9/Materials | Core integrity fell below 50% 578 | -9/Materials | Core integrity fell below 20% 582 | -9/Materials | Destroyed by G-34 Mercenary with Small Laser Last Messages --------------- 00531_ Acquired Prototype Ballistic Gun. 00531_ Identified Imp. Assault Rifle. 00534_ K-01 Serf collects debris. 00537_ Dropped Hvy. Hammer. 00537_ Acquired Prototype Engine. 00538_ Acquired 13 matter. 00542_ Lgt. Treads destroyed. 00548_ Ion Engine destroyed. 00549_ Destroyed Imp. Heat Sink. 00549_ G-47 Trooper system corrupted by crushing effect. 00550_ G-47 Trooper system terminally corrupted. 00552_ G-34 Mercenary destroyed. 00556_ C-30 ARC bursts open, deploying its payload. 00556_ S-10 Pest unfolds itself. 00557_ G-34 Mercenary knocked back. 00565_ Lgt. Treads destroyed. 00579_ S-10 Pest destroyed. 00579_ Destroyed Flight Unit. 00579_ Destroyed Lgt. Ion Engine. 00579_ S-10 Pest destroyed. Map ----- +----------------------------------------------------+ | ????????????????????????????????????????? | | ????????????????????????????????????????? | | ????????????????????????????????????????? | | ????????????????????????????????????????? | | ????????????????????????????????????????? | | ????????????????????????????????????????? | | ????????????????????????????????????????? | | ????????????????????????????????????????? | | ???????????????????????? ?????????????? | | ???????????????????????? ?????????????? | | ???????????????????????? ?????????????? | | ???????????????????????# #????????????? | | ???????????????????????# #????????????? | | ???????????????????????# #????????????? | | ???????????????????????# #????????????? | | ???????????????????????# #????????????? | | ???????????????????????# #????????????? | | ???????????????????????# #????????????? | | ???????????????????????# +????????????? | | ???????????????????????# #????????????? | | ???????????????????????# #????????????? | | ?????????????????####??# #????????????? | | ?????????????????? ?# #????????????? | | ????????????????"" ?"" # #????????????? | | ?????????????? """ "Y" #g #????????????? | | ?????????????? """ + @%#????????????? | | ?????????????# # [=#????????????? | | ?????????????# !!!??? o!%###########??? | | ?????????????# ?????? = #??? | | ???????????????????? = "" #??? | | ???????????????????### [* T" #??? | | ????????????????????? s*g/g " #??? | | ????????????????###### *[ #??? | | ????????????????# %! ! #??? | | ????????????????# #??? | | ????????????????# ; #??? | | ????????????????# ;;;;;;;####??? | | ????????????????# ; #?????? | | ????????????????# """ # # ####?????? | | ???#+########+### """ #####????????? | | ? """ #????????????? | | ? #????????????? | | ? k #????????????? | | ???????####+######/##### ##########???? | | ????????????????# # # #???? | | ????????????????# "" # #"" #???? | | ????????????????# """ + #"T % #???? | | ????????????????# S" # #"" #???? | | ????????????????# % # + #???? | | ????????????????#= !!!# # """" #???? | +----------------------------------------------------+ Best States ------------- Heat Dissipation 28 Energy Generation 10 Energy Capacity 250 Matter Stores 300 Matter Capacity 300 Sight Range 18 Terrain Scan Density 10 Evasion (%) 55 Recoil Reduction 2 Offensive Hacking 10 Item Schematics ----------------- None Robot Schematics ------------------ None Fabricated ------------ Nothing Repaired ---------- Nothing Alien Tech Used ----------------- None Achievements -------------- None Challenges ------------ None Game ------ Seed BottomlessHeavyFlamer Manual? 0 Play Time 00:06:31 Cumulative 1060.8 hours Start 2025.05.24 @ 16:47:45 End 2025.05.24 @ 16:54:55 Sessions 1 Manual Loads 0 Difficulty Rogue Special Mode None Game No. 1316 Rogue 1033 Adventurer 124 Explorer 159 Win Type - Total 47 Types 33/0/8/4/1/0/0/1/0/0 Lore% 91 Gallery% 86 Achievement% 80 Wizard Run 0 Options --------- Layout 0 ASCII 0 Keyboard 1 Movement Numpad Keybinds 0 Fullscreen 2 Font 18/X11 Map View 76x50 Zoom Use 0% Tactical HUD 1 Map Filters NONE Filters NONE Steam 1 RUN: 3b7633ff-d569-4893-9809-a50e35006164